fUSD/lending_fUSD_20240326
["ID","MTS","AMOUNT","RATE_DAILY","PERIOD"]
[320526808,1711411478045,170.47,0.00024256,2]
[320526809,1711411551155,-150.0,0.00031289,3]
[320526810,1711411551175,-150.0,0.00031289,2]
[320526811,1711411551195,-500.0,0.0003129,2]
[320526812,1711411551215,-143.55956072,0.0003129,17]
[320526813,1711411628147,-238.10412408,0.0003129,17]
[320526814,1711411628168,-619.75219655,0.0003129,4]
[320526815,1711411629109,-654.66690212,0.0003129,4]
[320526816,1711411629128,-505.01630497,0.0003129,4]
[320526817,1711411629148,-282.58044054,0.0003129,4]
[320526818,1711411636093,-366.88435826,0.0003129,4]
[320526819,1711411638096,-669.6854051,0.0003129,4]
[320526820,1711411638123,-500.0,0.0003129,2]
[320526821,1711411638144,-26.51093016,0.00031295,120]
[320526822,1711411642105,-169.66646406,0.0003119,2]
[320526823,1711411642129,-123.48906984,0.00031295,120]
[320526824,1711411642150,-150.0,0.00031493,120]
[320526825,1711411642177,-153.12861841,0.00032226,7]
[320526826,1711411642197,-150.0,0.00034136,120]
[320526827,1711411642218,-157.8299123,0.0003488,7]
[320526828,1711411642239,-1258.90744849,0.000359,2]
[320526829,1711411642329,-1685.74010929,0.000359,2]
[320526830,1711411642350,-3958.83985471,0.00036,60]
[320526831,1711411646196,-518.40296762,0.00036,60]
[320526832,1711411649080,164.9460585,0.0002172,2]
[320526833,1711411650129,-164.9460585,0.0003207,7]
[320526834,1711411650149,-1819.14020636,0.00036,60]
[320526845,1711411831885,-260.631371,0.0003109,120]
[320526846,1711411831898,-944.48844133,0.0003109,120]
[320526847,1711411831946,-677.13538767,0.0003109,120]
[320526848,1711411831958,-5563.86461233,0.00031358,30]
[320526849,1711411831969,-3436.41538767,0.00031358,30]
[320526850,1711411831978,-150.0,0.00034265,120]
[320526851,1711411831988,-12825.51879378,0.00036,60]
[320526852,1711411831998,-150.99,0.00036,10]
[320526853,1711411832007,-220.92360819,0.00036,4]
[320526854,1711411832019,-1027.0,0.00037715,5]
[320526855,1711411832029,-150.0,0.00037888,120]
[320526856,1711411832038,-18585.21083613,0.00039,5]
[320526857,1711411832048,-451.94,0.00039,2]
[320526858,1711411832057,-1027.0,0.000397,5]
[320526859,1711411832066,-1349.36182717,0.0004,5]
[320526860,1711411832075,-3592.51885774,0.000408,30]
[320526861,1711411832085,-154.17930758,0.00041225,30]
[320526862,1711411832094,-1027.0,0.00041789,30]
[320526863,1711411832104,-232.56194394,0.00042,4]
[320526889,1711411837793,-186.29593319,0.00042,4]
[320526891,1711411837802,-1846.09786884,0.00042,50]
[320526893,1711411837811,-158.0,0.00043427,2]
[320526895,1711411837820,-150.0,0.00043507,120]
[320526897,1711411837829,-939.64257484,0.00043989,30]
[320526899,1711411837848,-87.35742516,0.00043989,30]
[320526900,1711411837857,-3206.3410063,0.00044444,7]
[320526901,1711411837868,-259.181997,0.00044444,7]
[320526902,1711411837880,-1130.60515198,0.00044444,7]
[320526903,1711411837891,-439.9044971,0.00044444,7]
[320526904,1711411837901,-150.0,0.00044555,120]
[320526905,1711411837909,-1286.77919919,0.00044701,2]
[320526906,1711411837921,-381.55080081,0.00044701,2]
[320526907,1711411837930,-1496.06156938,0.00044702,2]
[320526908,1711411837942,-413.31843062,0.00044702,2]
[320526909,1711411837953,-250.0,0.00044757,120]
[320526910,1711411837962,-183.0,0.00044956,2]
[320526911,1711411837972,-150.0,0.0004496,2]
[320526912,1711411837982,-250.0,0.00044966,110]
[320526913,1711411837991,-200.0,0.00045033,2]
[320526914,1711411838000,-351.05,0.00045121,2]
[320526915,1711411838009,-161.51474548,0.00045128,4]
[320526916,1711411838018,-3191.22,0.00045129,2]
[320526917,1711411838030,-1029.8967239,0.0004513,2]
[320526918,1711411838042,-463.4202856,0.0004513,2]
[320526928,1711411838618,-298.52743707,0.0004513,2]
[320526929,1711411838639,-1120.363758,0.0004513,2]
[320526930,1711411838650,-1321.75173715,0.0004513,2]
[320526931,1711411838662,-8624.89005828,0.0004513,2]
[320526932,1711411838671,-2247.17412348,0.00045161,2]
[320526933,1711411838691,-259.49297447,0.00045161,2]
[320526934,1711411838703,-464.0,0.00045161,2]
[320526935,1711411838727,-459.01463883,0.00045161,2]
[320526936,1711411838739,-2129.73472715,0.00045161,2]
[320526937,1711411838750,-18330.58353607,0.00045161,2]
[320526938,1711411838760,-10562.65,0.00045161,2]
[320526939,1711411838769,-297.95,0.00045393,2]
[320526940,1711411838780,-150.0,0.00045455,120]
[320526941,1711411838789,-539.05,0.00045677,2]
[320526942,1711411838799,-178.84,0.00045718,2]
[320526943,1711411838808,-180.26,0.00045725,120]
[320526944,1711411838818,-2460.537,0.00045725,30]
[320526945,1711411838828,-2104.25,0.00045747,120]
[320526946,1711411838837,-2104.38,0.00045841,45]
[320526947,1711411838846,-3927.15,0.00045844,2]
[320526948,1711411838856,-763.16,0.00045858,2]
[320526949,1711411838865,-178.84,0.0004587,2]
[320526950,1711411838875,-250.0,0.00045896,2]
[320526951,1711411838884,-371.17,0.00045943,120]
[320526952,1711411838893,-178.84,0.00046022,2]
[320526953,1711411838902,-178.84,0.00046175,2]
[320526954,1711411838912,-161.18,0.00046286,2]
[320526955,1711411838922,-1027.0,0.00046304,30]
[320526956,1711411838931,-161.18,0.0004663,2]
[320526957,1711411838943,-158.0,0.00046736,2]
[320526958,1711411838953,-161.18,0.00046975,2]
[320526959,1711411838962,-161.18,0.00047319,2]
[320526960,1711411838971,-1668.33,0.00047441,2]
[320526961,1711411838980,-161.18,0.00047664,2]
[320526962,1711411838990,-600.0,0.00048,56]
[320526963,1711411838999,-161.18,0.00048008,2]
[320526964,1711411839008,-161.18,0.00048353,2]
[320526965,1711411839018,-161.18,0.00048697,2]
[320526966,1711411839030,-1027.0,0.00048741,30]
[320526967,1711411839040,-3146.28060071,0.00049449,4]
[320526968,1711411839050,-15687.52263092,0.000499,30]
[320526969,1711411839060,-4100.91488061,0.000499,2]
[320526970,1711411839069,-971.115568,0.000499,2]
[320526971,1711411839079,-2017.77,0.0005,120]
[320526972,1711411839088,-1188.64965489,0.0005,2]
[320526973,1711411839097,-225.0,0.0005,60]
[320526974,1711411839107,-158.0,0.00050044,2]
[320526975,1711411839116,-1668.33,0.00050181,2]
[320526976,1711411839125,-4100.91488059,0.00050233,2]
[320526977,1711411839134,-971.11556792,0.00050233,2]
[320526978,1711411839148,-1105.89255347,0.00050351,120]
[320526979,1711411839207,-157.032608,0.00050398,78]
[320526980,1711411839216,-157.032608,0.00050498,79]
[320526981,1711411839225,-323.06456784,0.00050513,22]
[320526982,1711411839234,-156.94838143,0.00050535,2]
[320526983,1711411839244,-10926.29658472,0.00050535,27]
[320526984,1711411839253,-169.66646405,0.00050535,2]
[320526985,1711411839262,-233.0032319,0.00050535,27]
[320526986,1711411839271,-4100.91488059,0.00050567,2]
[320526987,1711411839282,-971.11556792,0.00050567,2]
[320526988,1711411839292,-173.37677938,0.00050587,2]
[320526989,1711411839301,-473.71082814,0.00050587,2]
[320526990,1711411839310,-276.0532466,0.00050587,30]
[320526991,1711411839319,-1276.02292282,0.00050592,47]
[320526992,1711411839328,-157.032608,0.00050598,80]
[320526993,1711411839337,-8629.71692557,0.00050599,120]
[320526994,1711411839346,-200.134725,0.000506,120]
[320526995,1711411839355,-38271.06640617,0.000506,120]
[320526996,1711411839363,-182.79500824,0.00050601,120]
[320526997,1711411839372,-152.32917353,0.00050601,120]
[320526998,1711411839381,-8629.71692558,0.00050601,120]
[320526999,1711411839390,-229.814144,0.00050602,2]
[320527000,1711411839399,-400.70297568,0.00050603,120]
[320527001,1711411839408,-2935.58456138,0.00050603,120]
[320527002,1711411839421,-152634.37208601,0.00050603,120]
[320527003,1711411839431,-228.33082872,0.00050603,120]
[320527004,1711411839440,-38271.06640617,0.00050605,120]
[320527005,1711411839449,-8629.71692558,0.00050605,120]
[320527006,1711411839458,-378.29221173,0.00050606,120]
[320527007,1711411839467,-378.29221174,0.00050607,120]
[320527008,1711411839476,-378.29221174,0.00050607,120]
[320527009,1711411839485,-267.13531713,0.00050608,120]
[320527010,1711411839495,-228.33082872,0.00050609,120]
[320527011,1711411839504,-200.13472499,0.0005061,120]
[320527012,1711411839513,-200.13472499,0.0005061,120]
[320527013,1711411839523,-8629.71692557,0.00050611,120]
[320527014,1711411839533,-378.29221173,0.00050611,120]
[320527015,1711411839542,-153084.2656247,0.00050612,120]
[320527016,1711411839552,-17259.43385114,0.00050613,120]
[320527017,1711411839561,-8629.71692557,0.00050613,120]
[320527018,1711411839570,-8629.71692558,0.00050613,120]
[320527019,1711411839579,-378.29221174,0.00050617,120]
[320527020,1711411839588,-228.33082872,0.00050618,120]
[320527021,1711411839598,-17259.43385114,0.00050619,120]
[320527022,1711411839607,-200.13472499,0.00050619,120]
[320527023,1711411839616,-756.58442347,0.00050619,120]
[320527024,1711411839626,-194.28579101,0.00050619,2]
[320527025,1711411839635,-228.33082872,0.0005062,120]
[320527026,1711411839644,-8629.71692558,0.00050621,120]
[320527027,1711411839653,-155569.95664739,0.00050622,120]
[320527028,1711411839662,-155569.95664739,0.00050623,120]
[320527029,1711411839672,-200.13472499,0.00050624,120]
[320527030,1711411839681,-756.58442347,0.00050625,120]
[320527031,1711411839690,-228.33082872,0.00050627,120]
[320527032,1711411839699,-267.13531713,0.00050628,120]
[320527033,1711411839709,-517.63190376,0.00050629,120]
[320527034,1711411839718,-152.32917353,0.0005063,120]
[320527035,1711411839726,-8629.71692557,0.00050631,120]
[320527036,1711411839735,-152.32917353,0.00050631,120]
[320527037,1711411839745,-378.29221173,0.00050631,120]
[320527038,1711411839754,-182.79500824,0.00050632,120]
[320527039,1711411839763,-200.134725,0.00050632,120]
[320527040,1711411839772,-182.79500824,0.00050634,120]
[320527041,1711411839781,-155569.95664739,0.00050635,120]
[320527042,1711411839791,-182.79500824,0.00050635,120]
[320527043,1711411839800,-155569.95664739,0.00050637,120]
[320527044,1711411839810,-8629.71692557,0.00050638,120]
[320527045,1711411839818,-152.32917353,0.00050638,120]
[320527046,1711411839827,-378.29221173,0.00050639,120]
[320527047,1711411839836,-756.58442347,0.00050639,120]
[320527048,1711411839845,-228.33082872,0.0005064,120]
[320527049,1711411839854,-8629.71692557,0.00050641,120]
[320527050,1711411839863,-756.58442347,0.00050641,120]
[320527051,1711411839872,-182.79500824,0.00050642,120]
[320527052,1711411839882,-153084.2656247,0.00050644,120]
[320527053,1711411839891,-8629.71692558,0.00050644,120]
[320527054,1711411839900,-200.134725,0.00050644,120]
[320527055,1711411839909,-267.13531713,0.00050645,120]
[320527056,1711411839919,-182.79500824,0.00050645,120]
[320527057,1711411839928,-267.13531713,0.00050645,120]
[320527058,1711411839938,-378.29221173,0.00050648,120]
[320527059,1711411839948,-267.13531713,0.00050649,120]
[320527060,1711411839957,-378.29221173,0.00050649,120]
[320527061,1711411839966,-8629.71692557,0.00050649,120]
[320527062,1711411839975,-153084.2656247,0.0005065,120]
[320527063,1711411839985,-756.58442347,0.0005065,120]
[320527064,1711411839994,-8629.71692558,0.00050651,120]
[320527065,1711411840003,-200.134725,0.00050651,120]
[320527066,1711411840012,-152.32917353,0.00050651,120]
[320527067,1711411840022,-164.9460585,0.00050651,60]
[320527068,1711411840033,-378.29221173,0.00050652,120]
[320527069,1711411840042,-8629.71692558,0.00050652,120]
[320527070,1711411840051,-38271.06640617,0.00050652,120]
[320527071,1711411840061,-38271.06640617,0.00050653,120]
[320527072,1711411840070,-756.58442347,0.00050653,120]
[320527073,1711411840079,-194.28579101,0.00050654,2]
[320527074,1711411840088,-400.70297568,0.00050655,120]
[320527075,1711411840097,-267.13531713,0.00050655,120]
[320527076,1711411840106,-153084.2656247,0.00050657,120]
[320527077,1711411840115,-152.32917353,0.00050657,120]
[320527078,1711411840124,-152.32917353,0.00050658,120]
[320527079,1711411840134,-38271.06640617,0.00050658,120]
[320527080,1711411840143,-8629.71692557,0.00050659,120]
[320527081,1711411840152,-378.29221173,0.00050659,120]
[320527082,1711411840161,-378.29221174,0.0005066,120]
[320527083,1711411840171,-150.0,0.0005066,30]
[320527084,1711411840180,-378.29221173,0.0005066,120]
[320527085,1711411840189,-160301.89347841,0.00050661,36]
[320527086,1711411840202,-7445.04905851,0.00050661,36]
[320527087,1711411840213,-7768.1384,0.00050661,36]
[320527088,1711411840224,-7146.2938,0.00050661,36]
[320527089,1711411840235,-19039.27397553,0.00050661,36]
[320527090,1711411840246,-603.45575644,0.00050661,36]
[320527091,1711411840257,-910.60655848,0.00050661,36]
[320527092,1711411840266,-233.10037452,0.00050661,120]
[320527093,1711411840278,-1267.65875993,0.00050661,120]
[320527101,1711411841615,-473.04997849,0.00050661,120]
[320527102,1711411841629,-637.17304018,0.00050661,120]
[320527103,1711411841641,-368.04046622,0.00050661,120]
[320527104,1711411841653,-309.4276796,0.00050661,120]
[320527105,1711411841669,-64872.9732468,0.00050661,120]
[320527106,1711411841681,-2647.86778908,0.00050661,120]
[320527107,1711411841693,-2109.97814077,0.00050661,120]
[320527108,1711411841706,-5441.758176,0.00050661,120]
[320527109,1711411841730,-267.97857409,0.00050661,120]
[320527110,1711411841743,-1133.77500012,0.00050661,120]
[320527111,1711411841755,-8648.86964372,0.00050661,120]
[320527112,1711411841766,-769.13994734,0.00050661,120]
[320527113,1711411841789,-66389.16583053,0.00050661,120]
[320527114,1711411841798,-378.29221174,0.00050663,120]
[320527115,1711411841808,-17259.43385114,0.00050663,120]
[320527116,1711411841817,-17259.43385114,0.00050663,120]
[320527117,1711411841828,-756.58442347,0.00050664,120]
[320527118,1711411841837,-8629.71692558,0.00050664,120]
[320527119,1711411841847,-8629.71692557,0.00050666,120]
[320527120,1711411841857,-8629.71692557,0.00050666,120]
[320527121,1711411841866,-8629.71692557,0.00050666,120]
[320527122,1711411841876,-756.58442347,0.00050666,120]
[320527123,1711411841886,-756.58442347,0.00050667,120]
[320527124,1711411841896,-228.33082872,0.0005067,120]
[320527125,1711411841906,-378.29221174,0.0005067,120]
[320527126,1711411841915,-200.134725,0.00050671,120]
[320527127,1711411841926,-153084.2656247,0.00050673,120]
[320527128,1711411841935,-8629.71692558,0.00050675,120]
[320527129,1711411841945,-200.13472499,0.00050676,120]
[320527130,1711411841959,-756.58442347,0.00050676,120]
[320527131,1711411841970,-756.58442347,0.00050676,120]
[320527132,1711411841980,-378.29221173,0.00050677,120]
[320527133,1711411841990,-17259.43385114,0.00050678,120]
[320527134,1711411842001,-200.13472499,0.00050678,120]
[320527135,1711411842011,-378.29221173,0.00050679,120]
[320527136,1711411842022,-756.58442347,0.00050679,120]
[320527137,1711411842034,-182.79500824,0.0005068,120]
[320527138,1711411842045,-153084.2656247,0.0005068,120]
[320527139,1711411842055,-400.70297568,0.00050681,120]
[320527140,1711411842065,-378.29221174,0.00050683,120]
[320527141,1711411842075,-400.70297568,0.00050683,120]
[320527142,1711411842085,-400.70297568,0.00050683,120]
[320527143,1711411842094,-500.0,0.00050684,120]
[320527144,1711411842104,-8629.71692558,0.00050685,120]
[320527145,1711411842114,-663.0,0.00050685,60]
[320527146,1711411842124,-821.0,0.00050685,60]
[320527147,1711411842135,-537.0,0.00050685,60]
[320527148,1711411842145,-17259.43385114,0.00050685,120]
[320527149,1711411842155,-17259.43385114,0.00050685,120]
[320527150,1711411842165,-8629.71692558,0.00050686,120]
[320527151,1711411842174,-38271.06640617,0.00050686,120]
[320527152,1711411842183,-194.28579101,0.00050687,2]
[320527153,1711411842193,-8629.71692558,0.00050687,120]
[320527154,1711411842202,-267.13531713,0.00050688,120]
[320527155,1711411842213,-756.58442347,0.00050689,120]
[320527156,1711411842223,-8629.71692557,0.00050689,120]
[320527157,1711411842233,-378.29221173,0.00050689,120]
[320527158,1711411842244,-8629.71692557,0.0005069,120]
[320527159,1711411842254,-378.29221173,0.0005069,120]
[320527160,1711411842264,-37485.488604,0.0005069,120]
[320527161,1711411842279,-3182.60000012,0.0005069,120]
[320527162,1711411842293,-12384.6572383,0.0005069,120]
[320527163,1711411842387,-6855.79242032,0.0005069,120]
[320527164,1711411842447,-2098.28,0.0005069,120]
[320527165,1711411842458,-4881.21895331,0.0005069,120]
[320527174,1711411842963,-515.811067,0.0005069,120]
[320527175,1711411842975,-475.33246739,0.0005069,120]
[320527176,1711411843150,-2941.09824956,0.0005069,120]
[320527177,1711411843163,-1033.135988,0.0005069,120]
[320527193,1711411845971,-1044.099995,0.0005069,120]
[320527197,1711411846467,-80186.7506417,0.0005069,120]
[320527198,1711411846476,-8629.71692558,0.00050691,120]
[320527199,1711411846486,-8629.71692558,0.00050692,120]
[320527200,1711411846495,-400.70297568,0.00050692,120]
[320527201,1711411846504,-378.29221173,0.00050693,120]
[320527202,1711411846513,-38271.06640617,0.00050694,120]
[320527203,1711411846523,-200.134725,0.00050694,120]
[320527204,1711411846534,-8629.71692557,0.00050695,120]
[320527205,1711411846544,-400.70297568,0.00050696,120]
[320527206,1711411846553,-150.0,0.00050698,30]
[320527207,1711411846562,-200.13472499,0.00050698,120]
[320527208,1711411846571,-200.134725,0.00050698,120]
[320527209,1711411846582,-157.032608,0.00050698,81]
[320527210,1711411846592,-155569.95664739,0.00050699,120]
[320527211,1711411846601,-756.58442347,0.00050699,120]
[320527212,1711411846610,-10926.29658467,0.00050776,27]
[320527213,1711411846619,-157.032608,0.00050798,82]
[320527214,1711411846628,-500.0,0.000508,2]
[320527215,1711411846637,-17118.38978074,0.00050898,2]
[320527216,1711411846646,-575.24269143,0.00050899,4]
[320527217,1711411846656,-65279.39010822,0.000509,30]
[320527218,1711411846670,-319803.6819826,0.000509,30]
[320527219,1711411846694,-121565.19834537,0.000509,30]
[320527220,1711411846703,-4100.91488059,0.000509,2]
[320527221,1711411846713,-971.11556792,0.000509,2]
[320527222,1711411846723,-153.28544936,0.000509,120]
[320527223,1711411846732,-153.28544936,0.000509,120]
[320527224,1711411846741,-500.0,0.00050958,120]
[320527225,1711411846750,-1000.0,0.00051,120]
[320527226,1711411846760,-11021.6180824,0.00051,50]
[320527227,1711411846770,-10926.29658467,0.00051017,27]
[320527228,1711411846779,-233.00323189,0.00051095,27]
[320527229,1711411846789,-537.0,0.00051096,60]
[320527230,1711411846798,-1276.0229228,0.00051138,48]
[320527231,1711411846807,-4100.91488059,0.00051233,2]
[320527232,1711411846817,-971.11556792,0.00051233,2]
[320527233,1711411846825,-10926.29658467,0.00051258,28]
[320527234,1711411846835,-1158.6,0.000513,30]
[320527235,1711411846844,-1000.0,0.000513,7]
[320527236,1711411846853,-1027.0,0.00051306,30]
[320527237,1711411846863,-539.05,0.00051386,120]
[320527238,1711411846872,-157.032608,0.00051398,83]
[320527239,1711411846881,-157.032608,0.00051498,84]
[320527240,1711411846891,-1000.0,0.00051499,120]
[320527241,1711411846900,-10926.29658467,0.00051499,28]
[320527242,1711411846910,-537.0,0.00051507,60]
[320527243,1711411846919,-1899.87689,0.0005153,56]
[320527244,1711411846929,-4100.91488059,0.00051567,2]
[320527245,1711411846938,-971.11556792,0.00051567,2]
[320527246,1711411846948,-13.85918677,0.00051598,85]
[320527247,1711411846976,-143.17342123,0.00051598,85]
[320527248,1711411846985,-517.04,0.00051644,30]
[320527249,1711411846995,-233.00323189,0.00051656,28]
[320527250,1711411847004,-150.0,0.00051684,120]
[320527251,1711411847013,-250.946,0.00051684,120]
[320527252,1711411847022,-119.01397487,0.00051684,49]
[320527254,1711412735161,-235.43972627,0.00020568,2]
[320527255,1711412735182,-615.65464067,0.000229,2]
[320527256,1711412825155,-150.0,0.00022899,2]
[320527257,1711412825177,-1059.77657191,0.000229,2]
[320527258,1711412825197,-819.34351802,0.000229,2]
[320527259,1711412831081,-791.18695235,0.000229,2]
[320527260,1711412833101,-292.78334407,0.000229,2]
[320527261,1711412833123,-155.0,0.000229,2]
[320527262,1711412833146,-1543.47164139,0.000229,10]
[320527263,1711412835086,-2169.1503858,0.000229,10]
[320527264,1711412835106,-350.0,0.00023,3]
[320527265,1711412835127,-223.90384949,0.00024,2]
[320527266,1711412835148,-400.0,0.00025,3]
[320527267,1711412835170,-210.0,0.00025189,2]
[320527268,1711412835191,-450.0,0.00027,3]
[320527269,1711412835211,-500.0,0.00029,3]
[320527270,1711412835232,-169.66646405,0.00030889,2]
[320527271,1711412835252,-5204.28121689,0.0003099,13]
[320527272,1711412851098,-151.71185087,0.00019105,2]
[320527273,1711412851120,-173.58981627,0.00019178,2]
[320527274,1711412851142,-167.41909626,0.00019564,2]
[320527275,1711412851162,-186.42814042,0.00020148,2]
[320527276,1711412851185,-130.01227952,0.000229,2]
[320527277,1711412852169,-104.88151511,0.000229,2]
[320527278,1711412852191,-1160.75079696,0.000229,10]
[320527279,1711412958118,-982.72775271,0.00022899,2]
[320527280,1711412969375,-953.00502428,0.00022899,2]
[320527281,1711412970099,-1005.18917425,0.00022899,2]
[320527292,1711413032066,-3712.62202719,0.00022899,10]
[320527293,1711413032075,-187.05309869,0.00023083,2]
[320527294,1711413032087,-166.52535601,0.00024676,2]
[320527295,1711413032096,-4315.57662064,0.0003099,13]
[320527296,1711413032105,-626.989691,0.000312,6]
[320527297,1711413032115,-173.58981627,0.00034844,7]
[320527298,1711413032124,-200.0,0.00035,30]
[320527299,1711413032134,-187.05309869,0.00039458,7]
[320527300,1711413032143,-150.99,0.00043856,10]
[320527301,1711413032153,-414.06735001,0.00043856,2]
[320527302,1711413032165,-150.60264999,0.00043856,2]
[320527303,1711413032174,-3743.76,0.00043856,2]
[320527304,1711413032184,-499.99,0.00043856,2]
[320527305,1711413032193,-222.0057498,0.00043856,2]
[320527306,1711413032221,-6522.4042502,0.00043856,2]
[320527307,1711413032231,-177.16850579,0.00044531,30]
[320527308,1711413032240,-5000.0,0.00045897,30]
[320527309,1711413032250,-784.6293187,0.00045898,4]
[320527311,1711413032260,-161.33,0.00045978,2]
[320527313,1711413032269,-192.84313529,0.00046976,30]
[320527316,1711413032279,-200.0,0.0004703,2]
[320527318,1711413032289,-161.37,0.00047383,2]
[320527320,1711413032299,-180.26,0.00047612,120]
[320527322,1711413032312,-161.37,0.00047692,2]
[320527324,1711413032321,-2469.25,0.00047736,2]
[320527326,1711413032334,-154.40070091,0.00047758,30]
[320527328,1711413032344,-250.0,0.00047846,110]
[320527331,1711413032355,-250.0,0.00047849,120]
[320527333,1711413032364,-250.0,0.00047922,120]
[320527336,1711413032375,-500.0,0.00047991,2]
[320527339,1711413032386,-523.43,0.00047994,2]
[320527342,1711413032396,-161.37,0.00048,2]
[320527345,1711413032407,-161.37,0.00048309,2]
[320527348,1711413032417,-161.37,0.00048618,2]
[320527351,1711413032427,-161.37,0.00048926,2]
[320527354,1711413032436,-531.61,0.00049218,2]
[320527357,1711413032446,-161.37,0.00049235,2]
[320527360,1711413032456,-17624.03,0.00049391,2]
[320527363,1711413032465,-236.36,0.0004943,2]
[320527366,1711413032476,-1753.54,0.00049448,120]
[320527368,1711413032486,-1644.81,0.00049485,120]
[320527370,1711413032496,-161.37,0.00049544,2]
[320527372,1711413032505,-161.33,0.00049563,2]
[320527374,1711413032515,-1012.0,0.00049564,117]
[320527375,1711413032525,-1382.69797238,0.00049614,45]
[320527378,1711413032615,-0.00372087,0.00049614,45]
[320527379,1711413032642,-8475.96830675,0.00049614,45]
[320527380,1711413032651,-161.37,0.00049852,2]
[320527381,1711413032660,-566.0,0.0005,17]
[320527382,1711413032669,-5854.18538376,0.0005,2]
[320527383,1711413032679,-156.39,0.00050233,2]
[320527384,1711413032688,-150.0,0.00050241,120]
[320527385,1711413032699,-186.8,0.00050311,120]
[320527386,1711413032708,-163.85,0.00050436,2]
[320527387,1711413032717,-309.3,0.00050581,120]
[320527388,1711413032727,-500.0,0.00050684,120]
[320527389,1711413032738,-508.0,0.00050685,60]
[320527390,1711413032747,-155.11619993,0.000509,120]
[320527391,1711413032757,-159.23684559,0.0005099,30]
[320527392,1711413032767,-159.23684559,0.0005099,30]
[320527393,1711413032777,-159.23684559,0.0005099,30]
[320527394,1711413032787,-159.23684559,0.0005099,30]
[320527395,1711413032797,-159.23684559,0.0005099,30]
[320527396,1711413032807,-159.23684559,0.0005099,30]
[320527397,1711413032817,-159.23684559,0.0005099,30]
[320527398,1711413032827,-159.23684559,0.0005099,30]
[320527399,1711413032841,-1921.27100375,0.00050999,4]
[320527400,1711413032850,-2500.0,0.00051,120]
[320527401,1711413032859,-2500.0,0.00051,120]
[320527402,1711413032869,-2500.0,0.00051,120]
[320527403,1711413032878,-2500.0,0.00051,120]
[320527404,1711413032887,-2500.0,0.00051,120]
[320527405,1711413032896,-1686.48326664,0.00051,120]
[320527406,1711413032906,-121392.1334949,0.00051,7]
[320527407,1711413032916,-4734.15002658,0.00051,120]
[320527408,1711413032926,-508.0,0.00051096,60]
[320527409,1711413032936,-1583.23074,0.0005117,55]
[320527410,1711413032946,-150.0,0.00051325,120]
[320527411,1711413032955,-736.36680533,0.00051493,2]
[320527412,1711413032965,-241.0,0.00051499,120]
[320527413,1711413032975,-508.0,0.00051507,60]
[320527414,1711413032984,-164.28334784,0.00051533,3]
[320527415,1711413032994,-1251.60217459,0.00051584,8]
[320527416,1711413033005,-301.5269299,0.0005163,23]
[320527417,1711413033016,-500.28667313,0.0005165,30]
[320527418,1711413033026,-501.54363732,0.0005165,120]
[320527419,1711413033035,-2000.0,0.00051684,15]
[320527420,1711413033045,-200.0,0.00051684,15]
[320527421,1711413033055,-2000.0,0.00051684,15]
[320527422,1711413033065,-200.0,0.00051684,15]
[320527423,1711413033074,-2000.0,0.00051684,15]
[320527424,1711413033162,-159.23684559,0.00051685,30]
[320527425,1711413033172,-159.23684559,0.00051685,30]
[320527426,1711413033181,-433.0,0.00051688,30]
[320527427,1711413033190,-279998.0012395,0.00051695,2]
[320527428,1711413033199,-37182.6325444,0.00051695,2]
[320527429,1711413033209,-173.58981629,0.00051777,60]
[320527430,1711413033218,-736.36680534,0.00051807,2]
[320527431,1711413033227,-1251.60217458,0.00051854,8]
[320527432,1711413033237,-155.0,0.00051899,4]
[320527433,1711413033246,-8154.6685,0.000519,2]
[320527434,1711413033255,-46710.6089,0.000519,2]
[320527435,1711413033265,-1209.0,0.000519,120]
[320527436,1711413033275,-166.04,0.00051915,2]
[320527437,1711413033284,-508.0,0.00051918,60]
[320527438,1711413033293,-6409.58945698,0.00051919,29]
[320527439,1711413033304,-155.33548794,0.00051919,29]
[320527440,1711413033314,-7500.0,0.00051954,3]
[320527441,1711413033325,-172.58721022,0.00051954,46]